fUSD/lending_fUSD_20260324
["ID","MTS","AMOUNT","RATE_DAILY","PERIOD"]
[408878672,1774380640830,-500.0,0.00014487,2]
[408878673,1774380640839,-500.0,0.00014487,2]
[408878674,1774380640849,-500.0,0.00014487,2]
[408878675,1774380640858,-500.0,0.00014487,2]
[408878676,1774380640868,-1500000.0,0.00014488,2]
[408878677,1774380640877,-4586.34,0.000145,2]
[408878678,1774380640886,-349.77,0.00014504,2]
[408878679,1774380640896,-9999.99,0.00014504,2]
[408878680,1774380640905,-13012.25,0.00014504,2]
[408878681,1774380640915,-1554.8799891,0.00014522,2]
[408878682,1774380640925,-9257.13901356,0.00014543,2]
[408878683,1774380640935,-12836.5737566,0.00014556,2]
[408878684,1774380640945,-500.0,0.00014587,2]
[408878685,1774380640954,-500.0,0.00014587,2]
[408878686,1774380640963,-500.0,0.00014587,2]
[408878687,1774380640972,-500.0,0.00014587,2]
[408878688,1774380640982,-500.0,0.00014587,2]
[408878689,1774380640991,-500.0,0.00014587,2]
[408878690,1774380641000,-307.34173929,0.00014587,2]
[408878691,1774380641009,-500.0,0.00014587,2]
[408878692,1774380641019,-500.0,0.00014587,2]
[408878693,1774380641029,-150.58347309,0.00014588,2]
[408878694,1774380641038,-10000.0,0.00014589,2]
[408878695,1774380641048,-583.36366289,0.00014591,2]
[408878696,1774380641059,-1106.26109833,0.0001464,2]
[408878697,1774380641068,-616.72336867,0.00014687,2]
[408878698,1774380641077,-603.31,0.00014687,2]
[408878699,1774380641087,-500.0,0.00014688,2]
[408878700,1774380641097,-500.0,0.00014688,2]
[408878701,1774380641110,-500.0,0.00014688,2]
[408878702,1774380641119,-9257.13901356,0.00014712,2]
[408878703,1774380641129,-12836.5737566,0.00014724,2]
[408878704,1774380641138,-500.0,0.00014761,2]
[408878705,1774380641149,-923.5,0.00014761,2]
[408878706,1774380641159,-250.0,0.00014808,2]
[408878707,1774380641168,-583.36366289,0.00014809,2]
[408878708,1774380641178,-154.29462543,0.00014869,2]
[408878709,1774380641188,-9257.13901356,0.00014882,2]
[408878710,1774380641197,-12836.5737566,0.00014892,2]
[408878711,1774380641206,-1106.26109833,0.00014892,2]
[408878712,1774380641215,-250.0,0.00014923,2]
[408878713,1774380641224,-437.66,0.00015006,2]
[408878714,1774380641234,-415.68,0.00015006,2]
[408878715,1774380641244,-415.68,0.00015006,2]
[408878716,1774380641253,-1000.63263987,0.00015021,2]
[408878717,1774380641263,-504.67871963,0.00015021,2]
[408878718,1774380641273,-1000.0,0.00015021,2]
[408878719,1774380641283,-1000.0,0.00015021,2]
[408878720,1774380641292,-1000.0,0.00015021,2]
[408878721,1774380641301,-500.0,0.00015021,2]
[408878722,1774380641311,-500.62395653,0.00015021,2]
[408878723,1774380641321,-1000.0,0.00015021,2]
[408878724,1774380641330,-504.00492722,0.00015021,2]
[408878725,1774380641340,-1000.0,0.00015021,2]
[408878726,1774380641350,-1000.0,0.00015021,2]
[408878727,1774380641360,-1000.0,0.00015021,2]
[408878728,1774380641370,-500.45556563,0.00015021,2]
[408878729,1774380641380,-1000.0,0.00015021,2]
[408878730,1774380641390,-200.0,0.00015027,2]
[408878731,1774380641399,-583.36366289,0.00015027,2]
[408878732,1774380641408,-270.3424235,0.00015035,2]
[408878733,1774380641418,-923.5,0.00015035,2]
[408878734,1774380641428,-9257.13901356,0.00015051,2]
[408878735,1774380641438,-247.86,0.00015058,2]
[408878736,1774380641447,-12836.5737566,0.0001506,2]
[408878737,1774380641457,-1106.26109833,0.00015144,2]
[408878738,1774380641467,-244.12672532,0.00015144,2]
[408878739,1774380641477,-265.55993614,0.00015144,2]
[408878740,1774380641487,-277.91587198,0.00015145,2]
[408878741,1774380641500,-168.0,0.00015163,2]
[408878742,1774380641510,-168.0,0.00015168,2]
[408878743,1774380641520,-151.51747593,0.00015199,2]
[408878744,1774380641530,-500.0,0.00015199,2]
[408878745,1774380641540,-500.0,0.00015199,2]
[408878746,1774380641550,-9552.16786547,0.00015199,2]
[408878747,1774380641560,-695.39793187,0.00015199,2]
[408878748,1774380641570,-500.0,0.00015199,2]
[408878749,1774380641580,-151.0,0.00015199,2]
[408878750,1774380641592,-500.0,0.00015199,2]
[408878751,1774380641602,-500.0,0.00015199,2]
[408878752,1774380641612,-500.0,0.00015199,2]
[408878753,1774380641622,-500.0,0.00015199,2]
[408878754,1774380641632,-500.0,0.00015199,2]
[408878755,1774380641643,-500.0,0.00015199,2]
[408878756,1774380641904,-500.0,0.00015199,2]
[408878757,1774380641915,-500.0,0.00015199,2]
[408878758,1774380641925,-500.0,0.00015199,2]
[408878759,1774380641935,-500.0,0.00015199,2]
[408878760,1774380641945,-500.0,0.00015199,2]
[408878761,1774380641955,-500.0,0.00015199,2]
[408878762,1774380641964,-500.0,0.00015199,2]
[408878763,1774380641974,-500.0,0.00015199,2]
[408878764,1774380641984,-500.0,0.00015199,2]
[408878765,1774380641994,-500.0,0.00015199,2]
[408878766,1774380642004,-500.0,0.00015199,2]
[408878767,1774380642014,-500.0,0.00015199,2]
[408878768,1774380642024,-500.0,0.00015199,2]
[408878769,1774380642035,-500.0,0.00015199,2]
[408878770,1774380642046,-500.0,0.00015199,2]
[408878771,1774380642057,-500.0,0.00015199,2]
[408878772,1774380642068,-200.0,0.00015199,2]
[408878773,1774380642080,-500.0,0.00015199,2]
[408878774,1774380642090,-500.0,0.00015199,2]
[408878775,1774380642107,-500.0,0.00015199,2]
[408878776,1774380642118,-500.0,0.00015199,2]
[408878777,1774380642128,-174.61919141,0.00015199,2]
[408878778,1774380642141,-500.0,0.00015199,2]
[408878779,1774380642151,-500.0,0.00015199,2]
[408878780,1774380642162,-151.0,0.00015199,2]
[408878781,1774380642172,-500.0,0.00015199,2]
[408878782,1774380642182,-500.0,0.00015199,2]
[408878783,1774380642192,-500.0,0.00015199,2]
[408878784,1774380642203,-151.0,0.00015199,2]
[408878785,1774380642213,-156.587,0.00015199,2]
[408878786,1774380642226,-194.37971726,0.00015199,2]
[408878787,1774380642237,-693.3919763,0.00015199,2]
[408878788,1774380642247,-209.40437684,0.00015199,2]
[408878789,1774380642258,-262.90206542,0.00015199,2]
[408878790,1774380642269,-250.0,0.00015199,2]
[408878791,1774380642279,-250.0,0.00015199,2]
[408878792,1774380642290,-279.9045709,0.00015199,2]
[408878793,1774380642301,-250.0,0.00015199,2]
[408878794,1774380642311,-250.0,0.00015199,2]
[408878795,1774380642324,-250.0,0.00015199,2]
[408878796,1774380642336,-250.0,0.00015199,2]
[408878797,1774380642347,-250.0,0.00015199,2]
[408878798,1774380642359,-250.0,0.00015199,2]
[408878799,1774380642369,-250.0,0.00015199,2]
[408878800,1774380642380,-250.0,0.00015199,2]
[408878801,1774380642391,-250.0,0.00015199,2]
[408878802,1774380642402,-743.50770149,0.00015199,2]
[408878803,1774380642412,-500.0,0.00015199,2]
[408878804,1774380642422,-168.0,0.00015199,2]
[408878805,1774380642434,-150.0,0.000152,2]
[408878806,1774380642445,-250.72299322,0.000152,2]
[408878807,1774380642456,-9257.13901356,0.00015221,2]
[408878808,1774380642467,-12836.5737566,0.00015227,2]
[408878809,1774380642479,-2000.0,0.0001524,2]
[408878810,1774380642489,-583.36366289,0.00015246,2]
[408878811,1774380642501,-170.788391,0.00015252,7]
[408878812,1774380642511,-291.892802,0.00015252,7]
[408878813,1774380642523,-500.0,0.00015254,2]
[408878814,1774380642534,-9905.5980765,0.00015254,2]
[408878815,1774380642545,-151.0,0.00015254,2]
[408878816,1774380642558,-272.62944185,0.00015254,2]
[408878817,1774380642569,-198.041182,0.00015257,7]
[408878818,1774380642580,-350.0,0.00015269,2]
[408878819,1774380642591,-150.0,0.00015286,2]
[408878820,1774380642602,-923.5,0.00015309,2]
[408878821,1774380642613,-500.0,0.00015309,2]
[408878822,1774380642624,-10272.10520533,0.00015309,2]
[408878823,1774380642634,-151.0,0.00015309,2]
[408878824,1774380642644,-282.71673119,0.00015309,2]
[408878825,1774380642655,-500.0,0.00015364,2]
[408878826,1774380642665,-10652.17309792,0.00015364,2]
[408878827,1774380642676,-151.0,0.00015364,2]
[408878828,1774380642686,-460.448055,0.00015366,7]
[408878829,1774380642697,-9257.13901356,0.0001539,2]
[408878830,1774380642707,-12836.5737566,0.00015395,2]
[408878831,1774380642717,-1106.26109833,0.00015396,2]
[408878832,1774380642729,-200.0,0.000154,5]
[408878833,1774380642739,-168.0,0.00015406,2]
[408878834,1774380642749,-500.0,0.00015419,2]
[408878835,1774380642760,-11046.30350255,0.00015419,2]
[408878836,1774380642770,-151.0,0.00015419,2]
[408878837,1774380642784,-5888.0,0.00015448,2]
[408878838,1774380642795,-477.823454,0.00015452,7]
[408878839,1774380642805,-281.081958,0.00015452,7]
[408878840,1774380642815,-255.0,0.00015452,2]
[408878841,1774380642825,-500.0,0.00015452,2]
[408878842,1774380642835,-583.36366289,0.00015464,2]
[408878843,1774380642847,-557.96,0.00015473,2]
[408878844,1774380642857,-511.02,0.00015473,2]
[408878845,1774380642869,-572.28,0.00015473,2]
[408878847,1774380642879,-500.0,0.00015474,2]
[408878848,1774380642889,-11455.01673214,0.00015474,2]
[408878849,1774380642900,-151.0,0.00015474,2]
[408878850,1774380642910,-200.0,0.000155,5]
[408878852,1774380642920,-168.0,0.00015504,2]
[408878853,1774380642932,-4000.0,0.00015507,2]
[408878854,1774380642944,-168.0,0.00015556,2]
[408878855,1774380642955,-9257.13901356,0.0001556,2]
[408878856,1774380642965,-12836.5737566,0.00015563,2]
[408878857,1774380642984,-1008.47953738,0.00015568,2]
[408878858,1774380642995,-1500.0,0.00015568,2]
[408878859,1774380643006,-1500.0,0.00015568,2]
[408878860,1774380643016,-1000.0,0.00015568,2]
[408878861,1774380643028,-197.81018147,0.00015568,2]
[408878862,1774380643039,-1000.0,0.00015568,2]
[408878863,1774380643049,-1500.0,0.00015568,2]
[408878864,1774380643060,-403.17353576,0.00015568,2]
[408878865,1774380643071,-200.0,0.00015575,2]
[408878866,1774380643081,-923.5,0.00015583,2]
[408878867,1774380643091,-700.0,0.00015595,2]
[408878868,1774380643103,-197.1666,0.000156,2]
[408878869,1774380643113,-150.0,0.000156,2]
[408878870,1774380643123,-200.0,0.000156,5]
[408878871,1774380643133,-160.0,0.00015639,2]
[408878872,1774380643146,-979.16666667,0.00015639,2]
[408878873,1774380643157,-1106.26109833,0.00015648,2]
[408878874,1774380643168,-350.0,0.00015668,4]
[408878875,1774380643180,-160.0,0.00015676,2]
[408878876,1774380643190,-160.0,0.00015676,2]
[408878877,1774380643200,-1068.40091604,0.0001568,2]
[408878878,1774380643210,-1500.0,0.0001568,2]
[408878879,1774380643220,-1500.0,0.0001568,2]
[408878880,1774380643229,-1500.0,0.0001568,2]
[408878881,1774380643239,-1500.0,0.0001568,2]
[408878882,1774380643250,-1971.451376,0.0001568,2]
[408878883,1774380643259,-583.36366289,0.00015682,2]
[408878884,1774380643269,-420.0,0.00015698,2]
[408878885,1774380643279,-420.0,0.00015698,2]
[408878886,1774380643289,-200.0,0.000157,5]
[408878887,1774380643299,-2000.0,0.000157,2]
[408878888,1774380643309,-9257.13901356,0.00015729,2]
[408878889,1774380643318,-12836.5737566,0.00015731,2]
[408878890,1774380643327,-188.02553443,0.00015739,2]
[408878891,1774380643337,-150.0,0.00015742,2]
[408878892,1774380643347,-200.0,0.00015747,2]
[408878893,1774380643357,-181.08010149,0.00015747,2]
[408878894,1774380643367,-201.91895101,0.00015747,2]
[408878895,1774380643377,-121042.694837,0.00015767,2]
[408878896,1774380643387,-1680.0,0.00015767,2]
[408878897,1774380643397,-474.1270409,0.00015773,2]
[408878898,1774380643407,-168.0,0.00015784,2]
[408878899,1774380643417,-1101.0,0.000158,5]
[408878900,1774380643428,-2000.0,0.000158,2]
[408878901,1774380643438,-329.41107,0.0001584,2]
[408878902,1774380643447,-329.41106,0.0001584,2]
[408878903,1774380643457,-329.41107,0.0001584,2]
[408878904,1774380643467,-168.0,0.00015846,2]
[408878905,1774380643476,-5019.423,0.0001585,2]
[408878906,1774380643486,-173.825,0.0001585,2]
[408878907,1774380643496,-923.5,0.00015857,2]
[408878908,1774380643505,-168.0,0.00015872,2]
[408878909,1774380643515,-76056.276294,0.00015872,2]
[408878910,1774380643524,-152.6045041,0.00015878,2]
[408878911,1774380643534,-1000.0,0.00015883,2]
[408878912,1774380643543,-4000.0,0.00015895,2]
[408878913,1774380643553,-150.0,0.00015896,2]
[408878914,1774380643562,-12836.5737566,0.00015899,2]
[408878915,1774380643572,-9257.13901356,0.00015899,2]
[408878916,1774380643581,-25000.0,0.000159,3]
[408878917,1774380643591,-1106.26109833,0.000159,2]
[408878918,1774380643601,-9192.1786549,0.000159,3]
[408878919,1774380643611,-244.12672532,0.000159,2]
[408878920,1774380643620,-2000.0,0.000159,2]
[408878921,1774380643630,-583.36366289,0.000159,2]
[408878922,1774380643640,-277.91587198,0.000159,2]
[408878923,1774380643650,-265.55993614,0.000159,2]
[408878924,1774380643660,-1820.0,0.000159,5]
[408878925,1774380643670,-2181.0,0.000159,5]
[408878926,1774380643680,-2000.0,0.000159,2]
[408878927,1774380643689,-150.0,0.00015901,2]
[408878928,1774380643700,-150.0,0.00015912,2]
[408878929,1774380643710,-168.0,0.00015923,2]
[408878930,1774380643719,-400.0,0.0001597,2]
[408878931,1774380643729,-400.0,0.0001597,2]
[408878932,1774380643739,-400.0,0.0001597,2]
[408878934,1774380643748,-500.0,0.00015973,2]
[408878936,1774380643758,-500.0,0.00015973,2]
[408878938,1774380643768,-500.0,0.00015973,2]
[408878940,1774380643779,-500.0,0.00015973,2]
[408878942,1774380643789,-500.0,0.00015973,2]
[408878944,1774380643798,-500.0,0.00015973,2]
[408878945,1774380643808,-500.0,0.00015973,2]
[408878947,1774380643817,-500.0,0.00015973,2]
[408878948,1774380643826,-366.41832896,0.00015973,2]
[408878949,1774380643836,-500.0,0.00015973,2]
[408878950,1774380643846,-500.0,0.00015973,2]
[408878951,1774380643856,-500.0,0.00015973,2]
[408878952,1774380643866,-500.0,0.00015973,2]
[408878953,1774380643877,-500.0,0.00015973,2]
[408878954,1774380643887,-500.0,0.00015973,2]
[408878955,1774380643896,-500.0,0.00015973,2]
[408878956,1774380643907,-500.0,0.00015973,2]
[408878957,1774380643917,-500.0,0.00015973,2]
[408878958,1774380643927,-500.0,0.00015973,2]
[408878959,1774380643937,-500.0,0.00015973,2]
[408878960,1774380643948,-500.0,0.00015973,2]
[408878961,1774380643959,-500.0,0.00015973,2]
[408878962,1774380643969,-214.05234292,0.0001599,2]
[408878963,1774380643979,-214.05234292,0.0001599,2]
[408878964,1774380643989,-4244.83496148,0.00015996,2]
[408878965,1774380643999,-15040.62769422,0.00015996,3]
[408878966,1774380644010,-10795.79273273,0.00015996,3]
[408878967,1774380644020,-151.0,0.00015996,2]
[408878968,1774380644029,-1262.0,0.00015996,2]
[408878970,1774380644039,-150.0,0.00015996,2]
[408878971,1774380644049,-924.0,0.00015996,2]
[408878972,1774380644059,-1215.0,0.00015996,2]
[408878973,1774380644069,-6009.0,0.00015996,2]
[408878974,1774380644079,-3515.0,0.00015996,2]
[408878975,1774380644090,-557.96,0.00015998,2]
[408878976,1774380644103,-511.02,0.00015998,2]
[408878977,1774380644114,-572.28,0.00015998,2]
[408878978,1774380644125,-603.31,0.00015998,2]
[408878979,1774380644136,-168.0,0.00015999,2]
[408878980,1774380644147,-121631.5746169,0.00015999,2]
[408878981,1774380644158,-66092.0117833,0.00015999,2]
[408878982,1774380644170,-702.9371777,0.00015999,2]
[408878983,1774380644180,-3036.7590247,0.00015999,2]
[408878984,1774380644190,-4101.27751,0.00015999,2]
[408878985,1774380644201,-557.96,0.00015999,2]
[408878986,1774380644211,-557.96,0.00015999,2]
[408878987,1774380644221,-557.96,0.00015999,2]
[408878988,1774380644231,-557.96,0.00015999,2]
[408878989,1774380644242,-557.9688544,0.00015999,2]
[408878990,1774380644255,-511.02,0.00015999,2]
[408878991,1774380644266,-511.02,0.00015999,2]
[408878992,1774380644277,-511.02,0.00015999,2]
[408878993,1774380644288,-511.02,0.00015999,2]
[408878994,1774380644300,-511.21580688,0.00015999,2]
[408878995,1774380644310,-572.28,0.00015999,2]
[408878996,1774380644321,-572.28,0.00015999,2]
[408878997,1774380644333,-572.28,0.00015999,2]
[408878998,1774380644347,-572.28,0.00015999,2]
[408878999,1774380644358,-572.34553912,0.00015999,2]
[408879000,1774380644369,-603.31,0.00015999,2]
[408879001,1774380644379,-603.31,0.00015999,2]
[408879002,1774380644388,-603.31,0.00015999,2]
[408879003,1774380644398,-603.31,0.00015999,2]
[408879004,1774380644410,-603.31,0.00015999,2]
[408879005,1774380644486,-603.4972541,0.00015999,2]
[408879006,1774380644496,-2469787.35161554,0.00016,2]
[408879007,1774380644508,-1977211.46567204,0.00016,2]
[408879008,1774380645333,-1045.0,0.00015996,2]
[408879009,1774380645343,-3176598.8045393,0.00016,2]
[408879010,1774380645481,-11254.23974103,0.00016,2]
[408879011,1774380645493,-3114.10485394,0.00016,2]
[408879013,1774380645887,-4301.41677918,0.00016,2]
[408879014,1774380645899,-419.82415703,0.00016,2]
[408879015,1774380645934,-1754.56704307,0.00016,2]
[408879016,1774380646058,-30698.72840282,0.00016,2]
[408879076,1774380646636,-2903.024,0.00014218,2]
[408879079,1774380646648,-616.97629862,0.00014218,2]
[408879084,1774380646690,-14815.79100138,0.00014218,2]
[408879086,1774380646699,-3154.61062499,0.00015896,2]
[408879088,1774380646710,-19981.66463183,0.00016,2]
[408879091,1774380646722,-694.26,0.00016,2]
[408879101,1774380646806,-576.71314428,0.00016,2]
[408879103,1774380646817,-287333.3893977,0.00016,2]
[408879508,1774380939121,-293.65042013,0.00014,2]
[408879509,1774380939296,-210.34957987,0.00014,2]
[408879510,1774380953050,150.0,0.00013947,2]
[408879511,1774380956200,177.70877478,0.00013934,2]
[408879512,1774381000420,54.62942162,0.00013,2]
[408879513,1774381000445,195.37057838,0.00013,2]
[408879514,1774381048476,500.0,0.000139,2]
[408879515,1774381057761,1649.1422387,0.00013392,2]
[408879516,1774381057786,722.8955016,0.00013392,2]
[408879517,1774381590340,-166.66,0.00012231,2]
[408879518,1774381590363,-166.66,0.00012488,2]
[408879519,1774381590388,-166.66,0.00012746,2]
[408879520,1774381590408,-452.984,0.00012861,2]
[408879521,1774381590428,-499.08283413,0.00012961,2]
[408879522,1774381729400,-9870.25310612,0.000128,2]
[408879523,1774381735243,-3346.05689388,0.000128,2]
[408879524,1774381753128,-0.91716587,0.00012961,2]
[408879525,1774381753149,-250.0,0.00012991,2]
[408879526,1774381753497,-32.93626013,0.00013003,2]
[408879527,1774381756132,-133.72373987,0.00013003,2]
[408879528,1774381756153,-1200.0,0.00013021,2]
[408879529,1774381756173,-182.0,0.00013021,2]
[408879530,1774381756193,-300.0,0.00013021,2]
[408879531,1774381756213,-300.0,0.00013021,2]
[408879532,1774381756234,-10093.02,0.00013022,2]
[408879533,1774381756254,-256.21511094,0.00013042,2]
[408879534,1774381756274,-946.93,0.00013088,2]
[408879535,1774381756293,-260.44,0.00013118,2]
[408879536,1774381756314,-166.66,0.00013261,2]
[408879537,1774381756333,-2304.38,0.00013263,2]
[408879538,1774381756353,-315.0,0.00013263,2]
[408879539,1774381756373,-5434.23,0.00013355,2]
[408879540,1774381756393,-349.77,0.00013391,2]
[408879541,1774381756418,-2759.15337054,0.00013391,2]
[408879542,1774381758098,-1990.999066,0.00013391,2]
[408879543,1774381769077,-1103.220496,0.00013391,2]
[408879564,1774381831959,-260.03248731,0.00013391,2]
[408879567,1774381831971,-3625.58942686,0.00013391,2]
[408879569,1774381831983,-260.99515329,0.00013391,2]
[408879571,1774381831992,-302.11041688,0.00013391,2]
[408879573,1774381832002,-869.50973173,0.00013392,2]
[408879575,1774381832013,-1483.02344022,0.00013392,2]
[408879577,1774381832025,-275.78908775,0.00013392,2]
[408879579,1774381832034,-46.80412613,0.00013424,2]
[408879582,1774381832090,-253.19587387,0.00013424,2]
[408879583,1774381832100,-192.56459552,0.00013424,2]
[408879584,1774381832112,-107.43540448,0.00013424,2]
[408879585,1774381832122,-1200.0,0.00013424,2]
[408879586,1774381832131,-3240.0,0.00013425,2]
[408879587,1774381832141,-166.66,0.00013518,2]
[408879588,1774381832151,-1060.56267897,0.00013621,2]
[408879589,1774381832162,-500.0,0.0001363,2]
[408879590,1774381832172,-500.0,0.0001363,2]
[408879591,1774381832182,-15136.46508356,0.00013631,2]
[408879593,1774381832271,-500.0,0.0001363,2]
[408879595,1774381832281,-231.3993217,0.0001363,2]
[408879596,1774381832291,-500.0,0.0001363,2]
[408879599,1774381832302,-500.0,0.0001363,2]
[408879601,1774381832312,-500.0,0.0001363,2]
[408879603,1774381832322,-383546.51860695,0.00013631,2]
[408879605,1774381832334,-44214.21918113,0.00013631,2]
[408879607,1774381832346,-64025.61894845,0.00013631,2]
[408879609,1774381832357,-211745.45456063,0.00013631,2]
[408879612,1774381832443,-357.34173929,0.0001363,2]
[408879613,1774381832453,-500.0,0.0001363,2]
[408879614,1774381832463,-9331.97719579,0.00013631,2]
[408879617,1774381837900,-332.01075394,0.0001363,2]
[408879619,1774381837956,-167.98924606,0.0001363,2]
[408879620,1774381837965,-500.0,0.0001363,2]
[408879621,1774381837974,-500.0,0.0001363,2]
[408879622,1774381837983,-500.0,0.0001363,2]
[408879623,1774381837992,-500.0,0.0001363,2]
[408879624,1774381838001,-245.20066685,0.0001363,2]
[408879625,1774381838011,-363.61008709,0.0001363,2]
[408879626,1774381838023,-136.38991291,0.0001363,2]
[408879627,1774381838032,-220.61008709,0.00013631,2]
[408879628,1774381838051,-161400.49692506,0.00013631,2]
[408879629,1774381838062,-286.372,0.00013631,2]
[408879630,1774381838073,-1138.04976096,0.00013631,2]
[408879631,1774381838124,-870.23248426,0.00013631,2]
[408879632,1774381838192,-18928.28556743,0.00013631,2]
[408879633,1774381838205,-589155.69959869,0.00013631,2]
[408879634,1774381838214,-735.0,0.00013643,2]
[408879635,1774381838223,-390.0,0.00013643,2]
[408879636,1774381838232,-1000.0,0.00013698,2]
[408879638,1774381838242,-150.0,0.00013698,2]
[408879640,1774381838251,-1215.43,0.00013699,2]
[408879642,1774381838260,-1158.11,0.00013699,2]
[408879644,1774381838269,-500.0,0.00013699,2]
[408879646,1774381838278,-466.28317285,0.00013699,2]
[408879648,1774381838288,-150.0,0.000137,2]
[408879650,1774381838298,-5019.423,0.000137,2]
[408879652,1774381838308,-173.825,0.000137,2]
[408879654,1774381838318,-500.0,0.00013723,2]
[408879656,1774381838327,-200.0,0.00013723,2]
[408879658,1774381838336,-500.0,0.00013723,2]
[408879660,1774381838345,-500.0,0.00013723,2]
[408879662,1774381838354,-500.0,0.00013723,2]
[408879664,1774381838363,-500.0,0.00013723,2]
[408879666,1774381838372,-500.0,0.00013723,2]
[408879668,1774381838381,-500.0,0.00013723,2]
[408879670,1774381838390,-500.0,0.00013723,2]
[408879672,1774381838399,-500.0,0.00013723,2]
[408879674,1774381838408,-500.0,0.00013723,2]
[408879676,1774381838417,-500.0,0.00013723,2]
[408879678,1774381838425,-151.0,0.00013723,2]
[408879679,1774381838435,-151.0,0.00013723,2]
[408879681,1774381838447,-151.0,0.00013723,2]
[408879683,1774381838457,-151.0,0.00013723,2]
[408879685,1774381838466,-151.0,0.00013723,2]
[408879688,1774381838477,-500.0,0.00013723,2]
[408879689,1774381838486,-151.0,0.00013723,2]
[408879691,1774381838496,-500.0,0.00013723,2]
[408879693,1774381838505,-151.0,0.00013723,2]
[408879695,1774381838515,-500.0,0.00013723,2]
[408879697,1774381838526,-151.0,0.00013723,2]
[408879699,1774381838536,-289.08880189,0.00013723,2]
[408879701,1774381838545,-151.0,0.00013723,2]
[408879702,1774381838554,-151.0,0.00013723,2]
[408879703,1774381838564,-151.0,0.00013723,2]
[408879704,1774381838573,-49908.94634417,0.00013731,2]
[408879705,1774381838582,-166.66,0.00013756,2]
[408879706,1774381838591,-3469.67502805,0.00013897,2]
[408879707,1774381838601,-780.26269591,0.00014,2]
[408879708,1774381838611,-1942.13029704,0.00014,2]
[408879709,1774381838620,-2042.22663758,0.00014,2]
[408879710,1774381838630,-1738.89444915,0.00014,2]
[408879711,1774381838641,-504.0,0.00014,2]
[408879712,1774381838655,-9198.33942156,0.00014024,2]
[408879713,1774381838664,-1318.19887273,0.00014024,2]
[408879714,1774381838673,-2500.0,0.00014024,2]
[408879715,1774381838682,-500.0,0.00014024,2]
[408879716,1774381838691,-2872.7628,0.00014025,2]
[408879717,1774381838700,-1370.62974147,0.00014025,2]
[408879718,1774381838709,-382.48939346,0.00014025,2]
[408879719,1774381838717,-5563.34642139,0.00014025,2]
[408879720,1774381838726,-471.24111358,0.00014073,2]
[408879721,1774381838735,-13959.0,0.0001411,2]
[408879722,1774381838744,-277.67,0.00014113,2]
[408879723,1774381838754,-1060.56267897,0.00014115,2]
[408879724,1774381838763,-992.02,0.00014116,2]
[408879725,1774381838773,-151.0,0.00014122,2]
[408879726,1774381838782,-255.12181,0.00014122,2]
[408879727,1774381838791,-151.0,0.00014122,2]
[408879728,1774381838800,-151.0,0.00014122,2]
[408879729,1774381838810,-500.0,0.00014123,2]
[408879730,1774381838819,-500.0,0.00014124,2]
[408879731,1774381838829,-500.0,0.00014124,2]
[408879732,1774381838838,-500.0,0.00014124,2]
[408879733,1774381838848,-500.0,0.00014124,2]
[408879734,1774381838858,-500.0,0.00014124,2]
[408879735,1774381838866,-500.0,0.00014124,2]
[408879736,1774381838875,-568.61961956,0.00014124,2]
[408879737,1774381838885,-500.0,0.00014124,2]
[408879738,1774381838894,-500.0,0.00014124,2]
[408879739,1774381838903,-500.0,0.00014124,2]
[408879740,1774381838912,-500.0,0.00014124,2]
[408879741,1774381838921,-500.0,0.00014124,2]